Cogmind - Beta 15 @@@ ROGUE MODE // 2025.10.08 @ 15:30:33 Player: Triffids Result: Self-destructed Performance ------------- Evolutions (1) 500 Regions Visited (4) 800 Robots Destroyed (21) 105 Value Destroyed (415) 415 Prototype IDs (25) 500 Alien Tech Used (0) 0 Bonus (300) 300 TOTAL SCORE: 2620 Bonus ------- Aligned with FarCom 300 Cogmind --------- Core Integrity 351/400 Matter 300/300 Energy 160/160 System Corruption 0% Temperature Cool (0) Movement Walking (120) Location -9/Exiles Parts ------- > --- POWER (1) -------- Light Nuclear Core > --- PROPULSION (4) --- Aluminum Leg Aluminum Leg Aluminum Leg Aluminum Leg > --- UTILITY (2) ------ Sensor Array Signal Interpreter > --- WEAPON (2) ------- Beam Rifle Heavy Assault Rifle > --- INVENTORY (5) ---- Light Ion Engine Heat Sink Light Armor Plating Assault Rifle Mining Laser Peak State ------------ > --- POWER ------------ Light Nuclear Core > --- PROPULSION ------- Aluminum Leg Aluminum Leg Aluminum Leg Aluminum Leg > --- UTILITY ---------- Heat Sink Signal Interpreter > --- WEAPON ----------- Beam Rifle Heavy Assault Rifle > --- INVENTORY -------- Ion Engine Aluminum Leg Sensor Array Assault Rifle Mining Laser [Rating: 13] Favorites ----------- Power Ion Engine Engine Ion Engine Power Core Light Nuclear Core Propulsion Aluminum Leg Leg Aluminum Leg Utility Signal Interpreter Device Sensor Array Processor Signal Interpreter Weapon Assault Rifle Energy Gun Beam Rifle Ballistic Gun Assault Rifle Special Weapon Mining Laser Build | -11 -10 -9 -9 -9 ------- Run | Yrd Mat Mat Min Exi Slots Evolved 2 | . . 2 . . Power . | . . . . . Propulsion 2 | . . 2 . . Utility . | . . . . . Weapon . | . . . . . Parts Attached 22 | 5 3 14 . . Power 3 | 1 . 2 . . Engine 2 | 1 . 1 . . Core 1 | . . 1 . . Reactor . | . . . . . Propulsion 10 | 2 . 8 . . Treads . | . . . . . Leg 10 | 2 . 8 . . Wheel . | . . . . . Hover . | . . . . . Flight . | . . . . . Utility 4 | . 2 2 . . Device 3 | . 1 2 . . Storage . | . . . . . Processor 1 | . 1 . . . Hackware . | . . . . . Protection . | . . . . . Artifact . | . . . . . Weapon 5 | 2 1 2 . . Energy Gun 1 | . . 1 . . Energy Cannon . | . . . . . Ballistic Gun 3 | 2 . 1 . . Ballistic Cannon . | . . . . . Launcher . | . . . . . Special Weapon 1 | . 1 . . . Impact Weapon . | . . . . . Slashing Weapon . | . . . . . Piercing Weapon . | . . . . . Special Melee Weapon . | . . . . . Unidentified Prototypes . | . . . . . Parts Lost 2 | . . 2 . . Power 1 | . . 1 . . Propulsion . | . . . . . Utility 1 | . . 1 . . Weapon . | . . . . . Highest Loss Streak 1 | . . 1 . . To Critical Strikes . | . . . . . Average Backups 4 | 2 4 4 5 5 Power . | . 1 1 1 1 Propulsion . | . 1 . . . Utility 1 | . . 1 2 2 Weapon 1 | 1 1 1 2 2 Tool/Special . | . . . . . Unused Backups 6 | . 2 2 . 2 Power 3 | . 1 1 . 1 Propulsion 1 | . . 1 . . Utility 1 | . . . . 1 Weapon 1 | . 1 . . . Tool/Special . | . . . . . Average Slot Usage (%) 97 | . 95 97 100 100 Engine 7 | . 14 6 . . Core 4 | . . 3 11 11 Leg 38 | . 28 43 44 44 Device 10 | . 11 9 11 11 Processor 11 | . 11 11 11 11 Energy Gun 6 | . . 9 11 11 Ballistic Gun 17 | . 27 12 11 11 Peak Build Rating 13 | 5 7 13 13 13 Average Rating 9 | 4 6 10 13 13 On Entrance 7 | . 5 7 13 13 Naked Turns . | . . . . . Heaviest Build 12 | 9 10 12 12 12 Greatest Support 40 | 20 20 40 20 20 Greatest Overweight (x) . | . . . . . Average Overweight (x) . | . . . . . Largest Inventory Capacity 5 | 5 5 5 5 5 Average Capacity 5 | 5 5 5 5 5 Most Carried 5 | 5 5 5 5 5 Average Carried 4 | 2 4 4 5 5 Final Capacity 5 | 5 5 5 5 5 Final Carried 5 | 3 5 5 5 5 Class Distribution -------------------- 51% | Mutant 48% | Scavenger-Mutant Dominant Class ---------------- Mutant | -10/Materials Scavenger-Mutant | -9/Materials Scavenger-Mutant | -9/Mines Scavenger-Mutant | -9/Exiles Resources | -11 -10 -9 -9 -9 ----------- Run | Yrd Mat Mat Min Exi Matter Collected 740 | 325 137 278 . . Remotely . | . . . . . Salvage Created 799 | 88 123 588 . . Parts 41 | 6 12 23 . . Haulers Intercepted . | . . . . . Recyclers Shooed 4 | 2 1 1 . . Parts Field Recycled . | . . . . . Retrieved Matter . | . . . . . Parts Self-Destructed . | . . . . . Prevented . | . . . . . Kills | -11 -10 -9 -9 -9 ------- Run | Yrd Mat Mat Min Exi Combat Hostiles Destroyed 10 | . 4 6 . . Guns 10 | . 4 6 . . Classes Destroyed 7 | 1 4 2 . . Worker 1 | . 1 . . . Tunneler 5 | 5 . . . . Recycler 4 | . . 4 . . Watcher 1 | . 1 . . . Swarmer 2 | . 2 . . . Grunt 7 | . 2 5 . . Sentry 1 | . . 1 . . Best Kill Streak 5 | 3 2 5 . . Combat Bots Only 3 | . 2 3 . . Max Kills in Single Turn 2 | 1 2 1 . . Gunslinging . | . . . . . Exploded . | . . . . . Melee . | . . . . . Uniques/NPCs Destroyed . | . . . . . Combat | -11 -10 -9 -9 -9 -------- Run | Yrd Mat Mat Min Exi Hostile Shots Fired 75 | . 26 49 . . Missed 27 | . 9 18 . . Hits 48 | . 17 31 . . Projectile 48 | . 17 31 . . Critical Strikes 1 | . . 1 . . Damage Taken 588 | . 154 434 . . Core 78 | . 29 49 . . Absorbed by Shields . | . . . . . Core Remaining (%) 94 | 100 88 . . . Volleys Fired 69 | 17 20 32 . . Largest 2 | 2 2 2 . . Hottest 100 | 40 100 76 . . Shots Fired 135 | 34 37 64 . . Gun 132 | 34 34 64 . . Cannon . | . . . . . Launcher . | . . . . . Special 3 | . 3 . . . Kinetic 100 | 34 34 32 . . Thermal 35 | . 3 32 . . Explosive . | . . . . . Electromagnetic . | . . . . . Robot Hit Streak 9 | 3 3 9 . . Robot Miss Streak 4 | 3 3 4 . . Penetration Max . | . . . . . Secondary Targets 2 | . 1 1 . . Max Gunslinging Chain 1 | . 1 1 . . Shots Hit Robots 74 | 18 15 41 . . Core Hits 35 | 5 8 22 . . Critical Kills . | . . . . . Critical Parts Destroyed . | . . . . . Critical Strikes 2 | . . 2 . . Burn 2 | . . 2 . . Melee Attacks . | . . . . . Impact . | . . . . . Slashing . | . . . . . Piercing . | . . . . . Sneak Attacks . | . . . . . Combat Hostiles . | . . . . . Follow-up Attacks . | . . . . . Damage Inflicted 1006 | 238 199 569 . . Guns 1006 | 238 199 569 . . Cannons . | . . . . . Explosions . | . . . . . Melee . | . . . . . Ramming . | . . . . . Kinetic 687 | 238 199 250 . . Thermal 319 | . . 319 . . Explosive . | . . . . . Electromagnetic . | . . . . . Impact . | . . . . . Slashing . | . . . . . Piercing . | . . . . . Highest Corruption . | . . . . . Average Corruption . | . . . . . Corruption Purged . | . . . . . Corruption Blocked . | . . . . . Overload Shots . | . . . . . Overflow Damage . | . . . . . Projectiles . | . . . . . Explosions . | . . . . . Melee . | . . . . . Knockbacks . | . . . . . Impact . | . . . . . Kinetic . | . . . . . Secondary . | . . . . . Self-Inflicted Damage . | . . . . . Shots . | . . . . . Rammed . | . . . . . Targets Rammed . | . . . . . Kicked . | . . . . . Crushed . | . . . . . Highest Temperature 95 | . 60 95 . . Average Temperature 38 | . 30 40 . . Received Heat Transfer 291 | . 48 243 . . Siege Activations . | . . . . . Martial Activations . | . . . . . Shielding Activations . | . . . . . Robots Disrupted . | . . . . . Combat Hostiles . | . . . . . Robots Corrupted . | . . . . . Combat Hostiles . | . . . . . Parts Fried . | . . . . . Impact Corruptions . | . . . . . Robots Melted . | . . . . . Combat Hostiles . | . . . . . Parts Melted 2 | . . 2 . . Heat Transferred 962 | . . 962 . . Parts Sabotaged . | . . . . . Parts Stolen . | . . . . . Parts Stripped . | . . . . . Power Chain Reactions . | . . . . . Alert | -11 -10 -9 -9 -9 ------- Run | Yrd Mat Mat Min Exi Maximum Alert Level . | . . . . . Low Security (%) 100 | 100 100 100 100 . Level 1 . | . . . . . Level 2 . | . . . . . Level 3 . | . . . . . Level 4 . | . . . . . Level 5 . | . . . . . High Security . | . . . . . Max Security . | . . . . . Peak Influence 76 | 10 59 76 3 . Initial 5 | . . 5 3 . Average 17 | 1 19 24 . . Influence Increases 365 | 25 166 174 . . Destroy 0b10 Robot/C 200 | . 80 120 . . Destroy 0b10 Robot/NC 55 | 25 10 20 . . Destroy Leader 62 | . 32 30 . . Successful Hack 29 | . 27 2 . . Disable Machine 15 | . 15 . . . Destroy Structure 4 | . 2 2 . . Influence Decreases 365 | 25 153 178 9 . Entered New Map 14 | . . 8 6 . Time Decay 341 | 25 153 160 3 . Lost Part 10 | . . 10 . . Squads Dispatched 2 | . 2 . . . Investigation 1 | . 1 . . . Extermination . | . . . . . Reinforcement 1 | . 1 . . . Assault . | . . . . . Garrison . | . . . . . Intercept . | . . . . . Searches Triggered . | . . . . . Construction Impeded . | . . . . . Haulers Reinforced . | . . . . . Active Scanning Responses . | . . . . . Cargo Convoy Interrupts . | . . . . . Stealth | -11 -10 -9 -9 -9 --------- Run | Yrd Mat Mat Min Exi Distress Signals . | . . . . . Communications Jammed . | . . . . . Distress Signals . | . . . . . Times Spotted 19 | . 9 10 . . Peak Tracking Total 4 | . 3 4 . . Tactical Retreats . | . . . . . Traps | -11 -10 -9 -9 -9 ------- Run | Yrd Mat Mat Min Exi Traps Triggered . | . . . . . Indirectly . | . . . . . Trap Hack Attempts . | . . . . . Triggered . | . . . . . Disarmed . | . . . . . Reprogrammed . | . . . . . Reused . | . . . . . Traps Extracted . | . . . . . Installed . | . . . . . Triggered . | . . . . . Machines | -11 -10 -9 -9 -9 ---------- Run | Yrd Mat Mat Min Exi Machines Disabled 1 | . 1 . . . Max in Single Turn 1 | . 1 . . . Machines Repaired . | . . . . . Machines Dismantled . | . . . . . Machines Sabotaged . | . . . . . Overloaded Fab Kills . | . . . . . Hacking | -11 -10 -9 -9 -9 --------- Run | Yrd Mat Mat Min Exi Machines Accessed 9 | . 5 3 . 1 Terminals 8 | . 5 3 . . Fabricators . | . . . . . Repair Stations . | . . . . . Recycling Units . | . . . . . Scanalyzers . | . . . . . Garrison Access . | . . . . . Total Hacks 25 | . 17 7 . 1 Successful 16 | . 10 5 . 1 Failed 9 | . 7 2 . . Catastrophic 1 | . 1 . . . Database Lockouts . | . . . . . Manual 12 | . 7 4 . 1 Terminals 24 | . 17 7 . . Fabricators . | . . . . . Repair Stations . | . . . . . Recycling Units . | . . . . . Scanalyzers . | . . . . . Garrison Access . | . . . . . Terminal Hacks 11 | . 7 3 . 1 Robot Analysis 2 | . 2 . . . Prototype ID Bank 1 | . . 1 . . Branch Access Points 1 | . 1 . . . Terminal Index 1 | . 1 . . . Locate Traps 4 | . 2 2 . . Zone Layout 1 | . 1 . . . Proto ID Catalog 1 | . . . . 1 Fabricator Hacks . | . . . . . Repair Station Hacks . | . . . . . Recycling Unit Hacks . | . . . . . Scanalyzer . | . . . . . Garrison Access Hacks . | . . . . . Unauthorized Hacks 5 | . 3 2 . . Terminals 5 | . 3 2 . . Assimilate 1 | . . 1 . . Botnet 3 | . 2 1 . . Disrupt 1 | . 1 . . . Fabricators . | . . . . . Repair Stations . | . . . . . Recycling Units . | . . . . . Scanalyzers . | . . . . . Garrison Access . | . . . . . Data Cores Recovered . | . . . . . Used . | . . . . . Hacking Detections 8 | . 5 3 . . Full Trace Events 1 | . 1 . . . Feedback Events . | . . . . . Feedback Blocked . | . . . . . Robot Schematics Acquired . | . . . . . Robots Built . | . . . . . Authchips . | . . . . . Time . | . . . . . Total Robot Build Rating . | . . . . . Part Schematics Acquired . | . . . . . Parts Built . | . . . . . Authchips . | . . . . . Time . | . . . . . Total Part Build Rating . | . . . . . Parts Repaired . | . . . . . Time . | . . . . . Parts Recycled . | . . . . . Recycled Matter . | . . . . . Retrieved Matter . | . . . . . Retrieved Components . | . . . . . Parts Scanalyzed . | . . . . . Part Schematics Acquired . | . . . . . Parts Damaged . | . . . . . Bothacking | -11 -10 -9 -9 -9 ------------ Run | Yrd Mat Mat Min Exi Used RIF Installer . | . . . . . Robots Hacked . | . . . . . Non-combat . | . . . . . Combat . | . . . . . Robot Hacks Applied . | . . . . . Relay Couplers Released . | . . . . . Fabnet Peak Effective % . | . . . . . Robots Rewired . | . . . . . Allies Hacked . | . . . . . Hacks Repelled . | . . . . . Allies | -11 -10 -9 -9 -9 -------- Run | Yrd Mat Mat Min Exi Total Allies 1 | . . 1 . . Largest Group 1 | . . 1 1 1 Highest-Rated Group 10 | . . 10 10 10 Highest-Rated Ally 10 | . . 10 10 10 Total Orders . | . . . . . Ally Attacks . | . . . . . Total Damage . | . . . . . Kills . | . . . . . Allies Corrupted . | . . . . . Allies Melted . | . . . . . Intel | -11 -10 -9 -9 -9 ------- Run | Yrd Mat Mat Min Exi Active Infowar (turns) 871 | . 309 274 88 200 Sensors 871 | . 309 274 88 200 Robot Analysis Total 2 | . 2 . . . Derelict Logs Recovered 1 | . . . 1 . Drone Launches . | . . . . . Drone Recoveries . | . . . . . Exploration | -11 -10 -9 -9 -9 ------------- Run | Yrd Mat Mat Min Exi Turns Passed 1261 | 138 382 453 88 200 Spaces Moved 814 | 68 253 257 70 166 Core 15 | 15 . . . . Treads . | . . . . . Legs 799 | 53 253 257 70 166 Wheels . | . . . . . Hover . | . . . . . Flight . | . . . . . Fastest Speed 50 | 50 120 120 120 120 Average Speed 118 | 104 120 120 120 120 Slowest Speed 120 | 120 120 120 120 120 Overloaded Moves . | . . . . . Propulsion Burnouts . | . . . . . Robots Hopped . | . . . . . Potential Cave-ins . | . . . . . Cave-ins Triggered . | . . . . . Exploration Rate (%) 26 | 3 43 26 17 43 Regions Visited 4 Branch Regions 2 Pre-discovered Areas 1 | . . . 1 . Known Exits Taken 3 | . 1 1 1 . Unknown Exits Taken 1 | 1 . . . . Scrap Searched 1 | . . . 1 . Spaces Dug . | . . . . . Terrain Destroyed 1 | . 1 . . . Melee . | . . . . . Projectile 1 | . 1 . . . AOE . | . . . . . Terrain Rammed . | . . . . . Walls Destroyed . | . . . . . Machines Disabled . | . . . . . Actions | -11 -10 -9 -9 -9 --------- Run | Yrd Mat Mat Min Exi Total 969 | 100 288 341 74 166 Wait 38 | 5 6 22 5 . Move 810 | 67 252 256 69 166 Hop . | . . . . . Pick Up 15 | 6 4 5 . . Fast Attach 5 | 2 2 1 . . Attach 6 | 3 . 3 . . Detach . | . . . . . Swap 14 | . 2 12 . . Drop 12 | . 2 10 . . Fire 69 | 17 20 32 . . Melee . | . . . . . Ram . | . . . . . Kick . | . . . . . Crush . | . . . . . Escape Stasis . | . . . . . Rewire . | . . . . . Trap . | . . . . . Miscellaneous . | . . . . . Route ------- -11/Scrapyard -10/Materials (discovered 3 exits: *Mat / Min x2) -9/Materials -9/Mines -9/Exiles (discovered 1 exit: *Min) History --------- Turn | Location | Event 12 | -11/Scrapyard | Discovered new exit (range 15) 139 | -11/Scrapyard | Entered Materials 317 | -10/Materials | Build established: Mutant 449 | -10/Materials | Identified exit to Mines 484 | -10/Materials | Discovered new exit (range 6) 490 | -10/Materials | Identified exit to Materials 521 | -10/Materials | Entered another Materials area 521 | -9/Materials | Evolved 2 slots: Propulsion x2 954 | -9/Materials | Build established: Scavenger-Mutant 954 | -9/Materials | Discovered new exit (range 12) 972 | -9/Materials | Identified exit to Mines 974 | -9/Materials | Entered Mines 974 | -9/Mines | Accompanied by 1 ally 1000 | -9/Mines | Learned location of Storage (-9) 1051 | -9/Mines | Deemed a non-threat by the Exiles lab entrance 1051 | -9/Mines | Discovered new exit (range 5) 1058 | -9/Mines | Identified exit to Exiles 1062 | -9/Mines | Entered Exiles 1062 | -9/Exiles | Accompanied by 1 ally 1078 | -9/Exiles | Discovered new exit (range 15) 1094 | -9/Exiles | Identified exit to Mines 1116 | -9/Exiles | Met 8R-AWN 1144 | -9/Exiles | Met EX-HEX 1178 | -9/Exiles | Met EX-BIN 1198 | -9/Exiles | Aligned with FarCom system 1199 | -9/Exiles | Given EX-Vault access code 1256 | -9/Exiles | Opened EX-Vault 1262 | -9/Exiles | Self-destructed Last Messages --------------- Modified TNC 0b10 Alert Chip Cloak of Protection Skeleton Box Trap Reconfigurator Supersonic Drone Bay Army-in-a-Box PSU Rigger Chronowheel AWS/Thermal Latent Energy Streamer Gui. Plasma Cannon Firepult YOLO Cannon AWS/Gauss XL Autogun Array AWS/Autocannon Field Lobotomy Kit Longsword +1 Deploy-a-Sentry Map ----- +----------------------------------------------------+ | | | | | | | | | | | | | | | | | | | | | | | | | | | | | | | | | | | | | | | | | | | | | | | ??????????????????????????##?????????????????????? | | ??????????????????????####X####??????????????????? | | ??????????????????????# @== #??????????????????? | | ??????????????????????# ! #??????????????????? | | ??????????????????????#!o #??????????????????? | | ??????????????????????## ##??????????????????? | | ??????????????????????#X #???????????????????? | | ??????????????????????## #???????????????????? | | ???????????????????????# #???????????????????? | | ???????????????????????# #########???????????? | | ???????????????????????# ##""""""#???????????? | | ???????????????????????# ## """#???????????? | | ???????????????????????# X""#???????????? | | ???????????????????????# ## """#???????????? | | ???????????????######### ##""""""#???????????? | | ???????????????#""""""## #########???????????? | | ???????????????#"""" ## #???????????????????? | | ???????????????#""X" #???????????????????? | | ???????????????#" #???????????????????? | | ???????????????#" ## #???????????????????? | | ???????????????#""""""## #?#########?????????? | | ???????????????##"###### #?#"""""""#?????????? | | ??????????????? "?????# #?#"""""""#?????????? | | ??????????????""" ?????# #?#"""""""#?????????? | | ??????????????""" ????## ###"" """"#?????????? | | ????????????????" ????#" """"#?????????? | | ????????????????##????#" """#?????????? | +----------------------------------------------------+ Best States ------------- Heat Dissipation 38 Energy Generation 14 Energy Capacity 250 Matter Stores 300 Matter Capacity 300 Sight Range 16 Robot Scan Range 14 Terrain Scan Density 10 Evasion (%) 55 Item Schematics ----------------- None Robot Schematics ------------------ None Fabricated ------------ Nothing Repaired ---------- Nothing Alien Tech Used ----------------- None Achievements -------------- None Challenges ------------ None Game ------ Seed EnergyHoverPrototype Manual? 0 Play Time 00:21:18 Cumulative 236.6 hours Start 2025.10.07 @ 09:26:17 End 2025.10.08 @ 15:30:33 Sessions 3 Manual Loads 0 Difficulty Rogue Special Mode None Game No. 425 Rogue 425 Adventurer 0 Explorer 0 Win Type - Total 1 Types 1/0/0/0/0/0/0/0/0/0 Lore% 30 Gallery% 48 Achievement% 39 Wizard Run 0 Options --------- Layout 1 ASCII 0 Keyboard 1 Movement Vi Keybinds 0 Fullscreen 0 Font 20/Smallcaps Map View 59x39 Zoom Use 0% Tactical HUD 1 Map Filters NONE Filters NONE Steam 1 RUN: 5de35786-1926-4b0f-916e-f101d029bdc6